bitfinex-derivatives/quotes_ETHF0:USTF0_20251107
["timestamp","ask_amount","ask_price","bid_price","bid_amount"]
[1762527474109,0.00266715,3290.2,3290.1,0.4927]
[1762527475005,0.0045608,3290.5,3290.4,0.49265]
[1762527475202,1.62815387,3292.3,3290.2,6.0784]
[1762527475405,2.91297183,3292.8,3290.2,6.0784]
[1762527475406,0.80044548,3291.9,3290.2,11.56380214]
[1762527475606,0.80044548,3291.8,3290.3,11.56380214]
[1762527475805,0.80044548,3291.7,3289.8,0.0045608]
[1762527476010,0.80044548,3291.6,3289.9,11.56380214]
[1762527476211,0.49256,3291.1,3291.0,0.49256]
[1762527476513,0.00382335,3291.1,3289.9,11.56380214]
[1762527476807,0.00382335,3291.1,3291.0,0.49256]
[1762527477310,0.00382335,3291.1,3289.8,0.0045608]
[1762527477617,0.00382335,3291.1,3291.0,0.49256]
[1762527477914,0.00382335,3291.1,3289.9,11.56380214]
[1762527478115,0.49258,3291.0,3290.0,11.56380214]
[1762527478416,0.49259,3290.9,3289.9,11.56380214]
[1762527478612,0.7234,3291.0,3289.8,0.0045608]
[1762527478813,0.7234,3291.0,3290.9,0.49258]
[1762527479214,0.7234,3291.0,3289.8,0.0045608]
[1762527479515,0.49266,3290.5,3290.4,0.49264]
[1762527479913,0.4927,3290.1,3290.0,0.4927]
[1762527480116,0.79706121,3290.9,3289.8,11.56836294]
[1762527480314,0.49274,3290.0,3289.9,0.49272]
[1762527480618,0.49274,3290.0,3289.8,11.56836294]
[1762527480619,0.7234,3291.0,3289.8,11.56836294]
[1762527480811,0.79698122,3290.9,3289.8,0.0045608]
[1762527481111,0.49274,3289.9,3289.8,0.0045608]
[1762527481312,0.79698122,3290.9,3289.8,0.0045608]
[1762527481817,0.79698122,3290.9,3290.0,0.49271]
[1762527482216,0.79698122,3290.9,3289.8,0.0045608]
[1762527482217,0.49274,3289.9,3289.8,0.0045608]
[1762527482417,0.49278,3289.6,3289.5,0.00359536]
[1762527482619,0.49286,3289.1,3288.1,11.572]
[1762527482815,0.49292,3288.7,3288.3,0.49297]
[1762527483015,0.7977609,3289.8,3288.2,11.56380214]
[1762527483214,0.7977609,3289.8,3286.9,11.571]
[1762527483215,0.7977609,3289.7,3288.9,0.49288]
[1762527483434,0.6691,3289.0,3287.1,11.56380214]
[1762527483619,0.00236403,3289.0,3288.9,0.49289]
[1762527483823,1.62815387,3291.2,3288.0,0.645]
[1762527484019,0.49265,3290.5,3288.4,11.571]
[1762527484321,0.49269,3290.3,3290.1,0.4927]
[1762527484523,0.79797153,3290.7,3288.5,11.55924134]
[1762527484820,0.79797153,3290.6,3289.3,0.0045608]
[1762527485015,0.0045608,3290.3,3289.9,0.49272]
[1762527485221,0.0045608,3290.3,3289.3,11.56380214]
[1762527485424,0.4927,3290.1,3289.9,0.49273]
[1762527485724,0.0045608,3290.3,3289.4,11.55924134]
[1762527485725,0.79797153,3290.2,3289.4,11.55924134]
[1762527486019,0.79797153,3290.1,3290.0,0.49272]
[1762527486322,0.79797153,3290.1,3289.3,0.0045608]
[1762527486323,0.0045608,3290.3,3290.2,0.49269]
[1762527486925,0.49274,3289.9,3289.3,0.0045608]
[1762527487217,0.0045608,3290.3,3290.2,0.49269]
[1762527487422,1.08613419,3291.8,3289.4,10.75779499]
[1762527487623,0.79791277,3291.7,3289.5,10.75779499]
[1762527487821,1.08613419,3291.5,3289.4,10.75779499]
[1762527488324,0.49253,3291.3,3289.5,10.75779499]
[1762527488625,0.0045608,3290.7,3290.6,0.49263]
[1762527489022,0.0045608,3290.7,3290.6,11.25042499]
[1762527489322,0.49264,3290.6,3290.4,0.49265]
[1762527489717,0.0045608,3290.7,3289.3,0.0045608]
[1762527490028,0.0045608,3290.7,3289.9,0.49273]
[1762527490213,0.0045608,3290.7,3289.4,10.75779499]
[1762527490419,0.49278,3289.6,3289.3,0.0045608]
[1762527490721,1.08613419,3290.5,3288.5,0.00257253]
[1762527490928,0.49279,3289.5,3288.6,10.75779499]
[1762527491221,1.08613419,3290.3,3288.6,10.75779499]
[1762527491421,1.09069499,3290.7,3290.0,0.4927]
[1762527491622,0.0045608,3290.7,3290.1,0.4927]
[1762527491821,0.0045608,3290.7,3290.1,0.0045608]
[1762527492121,1.08613419,3290.6,3288.5,0.00257253]
[1762527492323,0.49283,3289.3,3289.1,0.49285]
[1762527492628,0.6691,3290.0,3288.6,10.75779499]
[1762527492822,0.49279,3289.6,3289.5,0.49279]
[1762527493024,0.49276,3289.7,3288.6,10.75779499]
[1762527493224,0.6691,3290.0,3289.9,0.49273]
[1762527493423,1.08909728,3291.2,3288.7,9.6671]
[1762527493623,2.69252878,3292.5,3288.7,9.6671]
[1762527493624,0.49255,3291.1,3291.0,0.49256]
[1762527493829,0.49258,3291.0,3290.9,0.49258]
[1762527494125,1.62815387,3291.9,3290.9,0.00252089]
[1762527494326,1.62815387,3291.9,3289.0,0.5344]
[1762527494526,0.0045608,3290.5,3290.4,0.49266]
[1762527494916,0.7234,3292.0,3290.5,9.65970912]
[1762527495119,0.49248,3291.6,3289.8,0.0045608]
[1762527495327,0.7234,3292.0,3290.0,0.645]
[1762527495526,0.49247,3291.7,3291.6,0.49248]
[1762527495726,0.7234,3292.0,3291.5,0.49249]
[1762527495727,0.49249,3291.6,3291.5,0.49249]
[1762527495925,0.00245417,3291.6,3291.5,0.00321748]
[1762527496228,0.00245417,3291.6,3291.5,9.6629266]
[1762527496825,0.6691,3293.0,3291.5,0.00321748]
[1762527497033,0.6691,3293.0,3292.1,0.4924]
[1762527497323,0.6691,3293.0,3291.5,0.00321748]
[1762527497528,0.49247,3291.7,3291.5,0.00321748]
[1762527497729,0.49246,3291.8,3291.5,10.1508458]
[1762527497921,0.0025412,3291.8,3291.5,0.49569748]
[1762527498324,0.0025412,3291.8,3291.6,0.49247]
[1762527498629,0.0025412,3291.8,3291.6,10.14761832]
[1762527498818,0.0025412,3291.8,3291.7,9.65514832]
[1762527499023,0.6691,3293.0,3292.4,0.49235]
[1762527499231,0.6691,3293.0,3291.8,9.65514832]
[1762527499431,0.49232,3292.7,3292.4,0.49235]
[1762527499629,0.49234,3292.6,3291.6,9.65514832]
[1762527499832,0.49238,3292.3,3292.1,0.4924]
[1762527500130,0.49239,3292.2,3292.0,0.49241]
[1762527500328,0.00313538,3292.3,3291.9,0.49243]
[1762527500525,0.00313538,3292.3,3292.1,0.49239]
[1762527500728,0.49218,3293.6,3292.2,8.85232838]
[1762527500934,1.62815387,3294.5,3291.6,8.85232838]
[1762527501230,13.19315387,3294.6,3293.1,0.49224]
[1762527501423,1.62815387,3294.5,3291.7,8.85232838]
[1762527501621,0.67131111,3294.0,3291.6,8.85232838]
[1762527501827,0.49231,3292.8,3292.7,0.49231]
[1762527502023,0.6691,3293.0,3292.4,0.0045608]
[1762527502024,0.49233,3292.7,3292.5,0.49233]
[1762527502331,0.49234,3292.5,3292.4,0.0045608]
[1762527502632,0.49233,3292.6,3292.4,0.0045608]
[1762527502927,0.0045608,3293.1,3292.5,8.85232838]
[1762527503229,0.6691,3293.0,3292.4,0.0045608]
[1762527503426,0.6691,3293.0,3292.4,8.85688918]
[1762527503732,0.6691,3293.0,3292.5,8.85232838]
[1762527503924,0.0045608,3293.1,3292.9,0.49228]
[1762527504230,0.0045608,3293.1,3293.0,0.49227]
[1762527504623,0.0045608,3293.1,3293.0,8.85232838]
[1762527504823,0.0045608,3293.1,3293.0,9.34459838]
[1762527505428,0.0045608,3293.1,3293.0,8.85232838]
[1762527505629,0.0045608,3293.1,3293.0,9.34459838]
[1762527506329,0.6691,3295.0,3293.1,0.3225]
[1762527506725,0.6691,3295.0,3293.2,8.85011727]
[1762527507031,1.62815387,3296.0,3294.0,0.3225]
[1762527507234,0.49186,3295.8,3295.3,0.49192]
[1762527507439,0.49186,3295.8,3294.0,0.3225]
[1762527507440,0.00299227,3295.3,3295.2,0.49194]
[1762527507733,0.00299227,3295.3,3295.2,0.49441209]
[1762527507928,0.00299227,3295.3,3295.2,8.85258936]
[1762527508431,1.62815387,3297.7,3295.3,8.85011727]
[1762527508635,1.62815387,3298.0,3295.3,8.85011727]
[1762527508934,0.6691,3297.0,3295.4,8.85011727]
[1762527509123,0.6691,3297.0,3296.2,0.49178]
[1762527509427,0.63298858,3297.0,3296.3,0.00455366]
[1762527509633,0.49171,3296.8,3296.4,0.49175]
[1762527509828,0.00308858,3297.0,3296.8,0.49169]
[1762527510029,0.49478858,3297.0,3296.5,9.34187727]
[1762527510230,0.49174,3296.8,3296.3,0.00455366]
[1762527510435,0.49176,3296.6,3296.3,0.00455366]
[1762527510734,0.49176,3296.6,3295.2,0.00247209]
[1762527510735,0.49192,3295.6,3295.2,0.00247209]
[1762527510924,0.63298858,3297.0,3294.6,0.49204]
[1762527511128,0.6299,3295.0,3292.2,0.5344]
[1762527511328,0.6299,3295.0,3291.0,0.6457]
[1762527511329,0.4923,3293.0,3292.3,8.85011727]
[1762527511532,0.6299,3294.0,3291.1,8.85011727]
[1762527511726,0.6299,3294.0,3291.7,0.00455366]
[1762527511924,0.00455366,3293.2,3291.7,0.00455366]
[1762527512129,0.49239,3292.4,3292.0,0.49244]
[1762527512323,0.00455366,3293.2,3291.8,8.85011727]
[1762527512529,0.00455366,3293.2,3291.9,8.85011727]
[1762527512530,0.49242,3292.2,3291.9,8.85011727]
[1762527512732,0.49241,3292.3,3291.9,0.49245]
[1762527512924,0.49239,3292.4,3292.0,9.34254727]
[1762527513124,0.00455366,3293.2,3292.4,0.49238]
[1762527513324,0.00455366,3293.2,3292.5,0.49237]
[1762527513529,0.49237,3292.6,3292.2,0.49242]
[1762527513834,0.49237,3292.6,3291.8,8.85011727]
[1762527514033,0.00455366,3293.2,3291.8,8.85011727]
[1762527514331,0.49248,3291.9,3291.7,0.00782325]
[1762527514737,0.77647977,3293.1,3291.7,0.00782325]
[1762527514738,0.77647977,3293.1,3291.8,9.34258727]
[1762527514929,0.77679943,3293.0,3291.8,8.85011727]
[1762527515237,0.77718968,3292.9,3291.8,8.85011727]
[1762527515426,0.00455366,3293.2,3292.0,0.49244]
[1762527515733,0.4923,3293.1,3291.7,0.00782325]
[1762527515938,0.00455366,3293.2,3291.7,0.00782325]
[1762527516236,0.49245,3292.1,3291.7,0.00782325]
[1762527516437,0.77719849,3293.1,3291.7,0.00782325]
[1762527516735,0.77719849,3293.0,3288.0,0.5344]
[1762527516933,0.6299,3292.3,3290.3,8.85011727]
[1762527517137,0.77773107,3292.2,3290.1,8.85011727]
[1762527517330,0.77773107,3292.2,3290.1,0.49272]
[1762527517639,0.77773107,3292.2,3288.0,0.5344]
[1762527517640,0.49265,3290.7,3290.4,0.49269]
[1762527517839,0.00254155,3290.7,3290.5,0.49267]
[1762527518028,0.00254155,3290.7,3290.4,0.00318127]
[1762527518230,0.49267,3290.6,3290.4,0.00318127]
[1762527518637,0.00254155,3290.7,3290.4,0.00318127]
[1762527519139,0.00254155,3290.7,3290.5,9.34278727]
[1762527519727,0.49268,3290.5,3290.4,0.00318127]
[1762527519930,0.49271,3290.4,3290.2,0.00455366]
[1762527520131,0.49271,3290.4,3290.2,0.49727366]
[1762527520343,0.49271,3290.4,3290.2,0.00455366]
[1762527520825,0.00254155,3290.7,3288.1,40.8]
[1762527521026,0.49273,3290.2,3288.2,8.85011727]
[1762527521234,0.00254155,3290.7,3288.3,8.85011727]
[1762527521436,0.49274,3290.1,3289.8,0.49278]
[1762527521630,0.49268,3290.5,3290.0,0.49275]
[1762527521832,0.00254155,3290.7,3289.9,0.00455366]
[1762527522137,0.00254155,3290.7,3288.3,8.85011727]
[1762527522138,0.579,3290.0,3288.2,8.85011727]
[1762527522443,0.00254155,3290.7,3288.2,8.85011727]
[1762527522636,0.00254155,3290.7,3290.3,0.4927]
[1762527522836,0.00254155,3290.7,3290.5,0.49267]
[1762527523037,0.00254155,3290.7,3290.5,0.49482099]
[1762527523237,0.00254155,3290.7,3290.6,8.85011727]
[1762527524135,0.00254155,3290.7,3290.6,9.34277727]
[1762527524442,0.49519155,3290.7,3290.5,0.00215099]
[1762527524643,0.00254155,3290.7,3290.6,8.85011727]
[1762527525737,0.49519155,3290.7,3290.5,0.00215099]
[1762527525939,0.49519155,3290.7,3290.3,0.00455366]
[1762527525940,0.49269,3290.5,3290.3,0.00455366]
[1762527526138,0.00254155,3290.7,3290.3,0.00455366]
[1762527526339,0.00254155,3290.7,3290.5,0.49267]
[1762527526545,0.00254155,3290.7,3290.4,8.85011727]
[1762527526740,0.49267,3290.6,3290.4,8.85011727]
[1762527527042,0.00254155,3290.7,3290.3,0.00455366]
[1762527527043,0.49269,3290.4,3290.3,0.00455366]
[1762527527239,8.00254155,3290.7,3285.6,2.62375476]
[1762527527445,0.77809572,3290.6,3289.4,0.49283]
[1762527527645,0.49279,3289.8,3289.6,0.49281]
[1762527527949,0.00254155,3290.7,3288.1,8.85011727]
[1762527528142,0.00254155,3290.7,3289.1,0.00456073]
[1762527528342,0.49276,3290.0,3289.8,0.49278]
[1762527528743,0.00254155,3290.7,3289.1,0.00808478]
[1762527528939,0.49279,3289.8,3289.1,0.00808478]
[1762527529143,0.00254155,3290.7,3289.2,8.85011727]
[1762527529547,0.00254155,3290.7,3289.3,8.85011727]
[1762527529948,0.00254155,3290.7,3289.4,8.85011727]
[1762527530247,0.49281,3289.7,3289.5,0.49282]
[1762527530446,0.00254155,3290.7,3289.2,8.85011727]
[1762527530739,0.4928,3289.7,3289.3,8.85011727]
[1762527530945,0.49278,3289.9,3289.7,0.4928]
[1762527531342,0.00254155,3290.7,3289.1,0.00808478]
[1762527531548,0.49268,3290.5,3289.2,8.85011727]
[1762527531746,0.49276,3290.0,3289.8,0.49278]
[1762527531940,0.00254155,3290.7,3289.3,8.85011727]
[1762527532246,0.00254155,3290.7,3289.2,8.85011727]
[1762527532645,0.00254155,3290.7,3289.9,0.49276]
[1762527532849,0.49288,3289.2,3289.1,0.00808478]
[1762527533953,0.579,3290.4,3289.1,9.35108205]
[1762527534250,0.49288,3289.2,3289.1,0.00808478]
[1762527534446,0.49293,3288.9,3288.7,0.49294]
[1762527534642,0.77603494,3290.3,3288.5,0.49297]
[1762527534643,0.49288,3289.2,3288.5,0.49297]
[1762527534843,0.77603494,3290.3,3288.7,0.49295]
[1762527535047,0.77603494,3290.3,3287.0,8.85011727]
[1762527535245,0.49292,3289.0,3288.5,0.49298]
[1762527535554,0.49292,3289.0,3288.5,0.00319044]
[1762527535850,0.00456073,3289.1,3288.6,8.85011727]
[1762527536249,0.00456073,3289.1,3288.7,8.85011727]
[1762527536549,0.00456073,3289.1,3288.6,8.85011727]
[1762527536753,0.00456073,3289.1,3289.0,0.49291]
[1762527536956,0.579,3290.4,3288.7,8.35732727]
[1762527537254,0.49282,3289.6,3289.3,0.49286]
[1762527537456,0.579,3290.4,3288.5,0.00319044]
[1762527537653,0.49283,3289.5,3288.6,0.3259]
[1762527537956,0.579,3290.4,3288.6,8.19039727]
[1762527538159,0.00456073,3289.8,3288.7,7.86449727]
[1762527538652,0.00456073,3289.8,3288.8,7.86449727]
[1762527538844,0.49286,3289.3,3288.7,0.49294]
[1762527539048,0.49288,3289.2,3288.6,7.86449727]
[1762527539248,0.49286,3289.4,3289.0,0.4929]
[1762527539443,0.00456073,3289.8,3288.6,7.86449727]
[1762527539656,0.00456073,3289.8,3288.5,0.00319044]
[1762527539956,0.00456073,3289.8,3289.2,0.49287]
[1762527540149,0.49286,3289.4,3288.6,7.86449727]
[1762527540354,0.49288,3289.2,3288.9,0.49292]
[1762527540556,0.4929,3289.1,3288.7,0.49295]
[1762527540757,0.49292,3289.0,3288.8,7.86449727]
[1762527540950,0.49292,3288.9,3288.5,0.00319044]
[1762527541148,0.77884323,3289.4,3288.6,8.05019727]
[1762527541458,0.00456073,3289.8,3288.6,8.05019727]
[1762527541656,1.66732601,3289.5,3288.5,0.00319044]
[1762527541851,1.85690379,3289.4,3288.6,7.86449727]
[1762527542156,0.78057778,3289.3,3288.5,0.00319044]
[1762527542354,0.78057778,3289.2,3289.1,0.49289]
[1762527542547,1.6327146,3289.8,3288.6,8.39889727]
[1762527542548,0.00456073,3289.8,3288.6,8.39889727]
[1762527542755,0.77527863,3289.7,3288.7,7.85993654]
[1762527542961,0.591,3289.5,3288.7,7.85993654]
[1762527543152,0.77527863,3289.4,3288.8,7.85993654]
[1762527543463,0.76803579,3289.3,3288.6,7.85993654]
[1762527543651,0.49295,3288.7,3288.6,7.85993654]
[1762527543852,0.49294,3288.8,3288.6,7.85993654]
[1762527544251,0.76803579,3288.9,3288.6,7.85993654]
[1762527544457,0.00456073,3289.3,3288.7,7.85993654]
[1762527544649,0.49295,3288.7,3288.6,7.85993654]
[1762527544852,0.00456073,3289.3,3288.5,0.00319044]
[1762527544853,0.49297,3288.6,3288.5,0.00319044]
[1762527545056,0.76869321,3288.6,3288.5,0.49617044]
[1762527545253,0.76869321,3288.6,3288.5,0.00319044]
[1762527545558,1.26166321,3288.6,3288.5,0.00319044]
[1762527545758,0.00456073,3289.3,3288.5,0.00319044]
[1762527545759,1.08088674,3289.3,3288.5,7.86312698]
[1762527546062,0.76902581,3289.2,3288.6,7.85537581]
[1762527546256,0.76902581,3289.2,3288.5,0.49617044]
[1762527546257,0.49297,3288.6,3288.5,0.00319044]
[1762527546455,0.76902581,3288.6,3288.5,0.00319044]
[1762527546655,1.26199581,3288.6,3288.5,0.00319044]
[1762527546853,0.49298,3288.5,3288.4,0.00305227]
[1762527547052,0.76902581,3288.5,3286.0,0.4273]
[1762527547263,1.07632601,3287.7,3286.9,7.17375182]
[1762527547561,0.49319,3287.1,3287.0,7.17375182]
[1762527547760,0.76902581,3287.1,3286.1,7.17375182]
[1762527547951,0.76902581,3287.1,3286.0,0.4273]
[1762527547952,0.00363592,3287.1,3287.0,0.00355653]
[1762527548258,0.77308838,3287.1,3287.0,0.00355653]
[1762527548655,0.77308838,3287.1,3286.3,0.00456073]
[1762527548656,0.49329,3286.5,3286.3,0.00456073]
[1762527548860,0.591,3286.8,3283.2,4.20353518]
[1762527548861,1.84577847,3286.4,3283.2,0.5517]
[1762527549157,1.66732601,3285.9,3284.1,7.17375182]
[1762527549360,0.76945246,3285.8,3284.1,7.17375182]
[1762527549664,1.66732601,3286.8,3284.2,7.17375182]
[1762527549859,1.00153516,3286.7,3284.6,0.00456073]
[1762527550062,0.4933,3286.4,3285.6,0.49341]
[1762527550356,0.49333,3286.2,3284.7,7.17375182]
[1762527550555,0.49336,3286.0,3285.5,0.49342]
[1762527550761,0.76688921,3286.0,3284.8,7.17375182]
[1762527550954,1.07632601,3286.6,3285.7,0.49339]
[1762527551152,0.76399688,3286.5,3284.7,7.17375182]
[1762527551357,0.591,3286.8,3285.6,0.49341]
[1762527551358,0.76399688,3286.4,3285.6,0.49341]
[1762527551661,0.49333,3286.2,3285.8,0.49338]
[1762527551862,0.00456073,3286.3,3285.9,0.49337]
[1762527552067,0.00456073,3286.3,3284.7,7.17375182]
[1762527552566,0.49342,3285.6,3284.8,7.17375182]
[1762527552764,0.00456073,3286.3,3284.7,7.17375182]
[1762527553169,0.49343,3285.5,3285.1,0.49348]
[1762527553356,0.49344,3285.5,3284.9,0.49351]
[1762527553658,0.49354,3284.8,3284.6,0.00456073]
[1762527553865,2.21915387,3285.9,3284.6,0.00456073]
[1762527553866,0.591,3285.9,3284.7,7.17375182]
[1762527554064,0.75655928,3285.8,3285.1,0.49349]
[1762527554265,0.75655928,3285.8,3284.8,7.17375182]
[1762527554461,0.75655928,3285.8,3284.7,7.17375182]
[1762527554462,0.49353,3284.9,3284.7,7.17375182]
[1762527554864,0.49568385,3284.9,3284.7,7.17375182]
[1762527555070,0.00215385,3284.9,3284.6,0.00456073]
[1762527555266,0.49362,3284.2,3284.1,0.00366388]
[1762527555467,0.49359,3284.5,3284.1,0.00366388]
[1762527555666,0.00215385,3284.9,3284.7,0.49354]
[1762527555967,0.4934,3285.7,3284.1,0.18936388]
[1762527556174,0.49339,3285.8,3284.1,0.18936388]
[1762527556469,1.62815387,3287.0,3284.6,0.00456073]
[1762527556675,0.4934,3285.7,3285.3,0.49345]
[1762527556867,0.49341,3285.6,3285.1,0.49348]
[1762527557065,0.49634347,3285.7,3284.7,6.09527196]
[1762527557368,0.00293347,3285.7,3284.8,6.09527196]
[1762527557570,0.00293347,3285.7,3285.0,0.49349]
[1762527557767,0.00293347,3285.7,3284.7,6.09527196]
[1762527557966,0.00293347,3285.7,3284.8,6.09527196]
[1762527558363,0.49349,3285.1,3284.8,6.09527196]
[1762527558565,0.4935,3285.0,3284.9,6.09527196]
[1762527558871,0.75041032,3285.6,3284.6,0.00456073]
[1762527559073,0.00293347,3285.7,3284.7,6.09527196]
[1762527559373,0.00293347,3285.7,3284.7,6.58879196]
[1762527559567,0.00293347,3285.7,3284.6,0.00456073]
[1762527560168,0.00293347,3285.7,3284.7,6.09527196]
[1762527560360,0.00293347,3285.7,3284.7,6.58879196]
[1762527560568,0.00293347,3285.7,3284.8,6.09527196]
[1762527560767,0.00293347,3285.7,3284.8,6.58877196]
[1762527560967,0.00293347,3285.7,3284.9,6.09527196]
[1762527561171,0.00293347,3285.7,3285.1,0.49346]
[1762527561371,0.49342,3285.4,3285.1,0.49346]
[1762527561572,0.00293347,3285.7,3284.6,0.00456073]
[1762527561763,0.49353,3284.8,3284.6,0.00456073]
[1762527561964,0.00293347,3285.7,3284.7,6.09527196]
[1762527562169,0.49347,3285.1,3284.8,0.49351]
[1762527562472,0.49348,3285.0,3284.8,6.09527196]
[1762527562671,0.75033153,3285.6,3284.6,0.00456073]
[1762527562872,0.4935,3284.9,3284.7,6.09527196]
[1762527563067,0.75031964,3285.6,3284.8,0.49351]
[1762527563271,0.00293347,3285.7,3284.8,6.09527196]
[1762527563770,0.00293347,3285.7,3285.2,0.49344]
[1762527563974,0.49345,3285.2,3284.9,0.4935]
[1762527564175,0.49345,3285.3,3285.0,6.09527196]
[1762527564473,0.00293347,3285.7,3284.8,0.5214]
[1762527564771,0.00293347,3285.7,3284.9,6.09527196]
[1762527564977,0.00456073,3286.0,3284.9,6.09527196]
[1762527565274,0.00456073,3286.0,3284.8,0.5214]
[1762527565275,0.49335,3285.9,3285.0,6.09527196]
[1762527565466,0.00456073,3286.0,3285.8,0.49336]
[1762527565976,0.00456073,3286.0,3285.9,6.09527196]
[1762527566168,0.00729056,3286.0,3285.9,6.09527196]
[1762527566369,0.591,3287.2,3286.0,5.3376652]
[1762527566671,0.23323564,3287.1,3284.9,5.3376652]
[1762527567075,0.23323564,3287.1,3285.3,0.49342]
[1762527567374,0.49343,3285.4,3285.0,5.3376652]
[1762527567576,0.0027621,3285.4,3284.9,5.34222593]
[1762527567779,0.4961821,3285.4,3285.0,0.49348]
[1762527567977,0.0027621,3285.4,3285.0,5.3376652]
[1762527568168,0.49348,3285.0,3284.9,0.00456073]
[1762527568369,0.49348,3285.0,3284.9,5.34222593]
[1762527568664,0.49348,3285.0,3284.9,0.00456073]
[1762527569372,0.23780766,3285.3,3284.2,0.4936]
[1762527569667,0.0027621,3285.4,3284.5,0.49355]
[1762527569869,0.0027621,3285.4,3284.5,0.49354]
[1762527570071,0.0027621,3285.4,3284.6,5.3376652]
[1762527570268,0.32964049,3285.6,3284.6,5.3376652]
[1762527570478,0.32964049,3285.6,3284.7,5.3376652]
[1762527570479,0.4935,3284.9,3284.7,5.3376652]
[1762527570775,0.49359,3284.3,3284.2,5.3376652]
[1762527571073,1.95779436,3285.6,3284.2,5.3376652]
[1762527571271,0.00456073,3285.2,3284.6,0.00456073]
[1762527571666,0.49351,3284.8,3284.7,5.3376652]
[1762527571868,0.49351,3284.8,3284.6,0.00456073]
[1762527572370,0.4936,3284.2,3284.1,0.00366388]
[1762527572570,0.4936,3284.2,3284.1,5.34132908]
[1762527572763,0.5594,3284.8,3284.1,5.34132908]
[1762527573165,0.49358,3284.4,3284.1,5.83494908]
[1762527573376,0.5594,3284.8,3284.2,5.3376652]
[1762527573574,0.49356,3284.5,3284.2,5.8312652]
[1762527573774,0.49356,3284.5,3284.2,0.4936]
[1762527574071,0.00456073,3285.2,3284.4,0.49357]
[1762527574072,0.49354,3284.7,3284.4,0.49357]
[1762527574268,0.49357,3284.5,3284.2,5.8312652]
[1762527574468,0.4936,3284.2,3284.1,5.34132908]
[1762527574670,0.4936,3284.2,3284.1,0.00366388]
[1762527574870,0.49357,3284.5,3284.1,5.83493908]
[1762527575068,0.49357,3284.4,3284.2,5.8312652]
[1762527575371,0.00456073,3285.2,3284.6,0.49354]
[1762527575572,0.49353,3284.7,3284.4,0.49356]
[1762527575876,0.00456073,3285.2,3284.1,0.00366388]
[1762527575877,0.00456073,3285.2,3284.2,5.3376652]
[1762527576372,1.6327146,3285.2,3284.1,0.00366388]
[1762527576572,0.49354,3284.6,3284.3,0.49358]
[1762527576771,0.4936,3284.2,3284.1,5.34132908]
[1762527576978,0.5594,3284.0,3283.3,0.49373]
[1762527577173,0.5594,3284.0,3281.6,0.5214]
[1762527577473,0.49374,3283.3,3282.5,4.7694669]
[1762527577770,0.5594,3284.0,3282.6,0.49383]
[1762527577771,2.18755387,3284.0,3282.6,0.49383]
[1762527577977,0.00456857,3283.6,3283.0,0.00456857]
[1762527578175,0.49377,3283.1,3283.0,8.57e-06]
[1762527578379,1.24370674,3283.1,3282.6,0.00231323]
[1762527578579,2.3851727,3283.0,3282.6,4.77178013]
[1762527578784,0.74993674,3282.9,3282.6,0.00231323]
[1762527579077,0.5594,3283.2,3280.0,0.5238]
[1762527579078,2.3851727,3282.8,3280.0,0.5238]
[1762527579271,2.3851727,3282.7,3280.9,4.7694669]
[1762527579472,0.74993674,3282.6,3280.9,4.7694669]
[1762527579773,0.74993674,3282.5,3281.0,4.7694669]
[1762527580078,0.66123298,3282.4,3281.6,0.53]
[1762527580375,1.63523596,3283.5,3281.6,0.53392956]
[1762527580681,2.17863596,3283.2,3281.7,4.7694669]
[1762527580873,1.63980453,3283.6,3281.7,4.7694669]
[1762527581075,0.00456857,3283.6,3281.8,4.7694669]
[1762527581275,0.00456857,3283.6,3281.7,4.7694669]
[1762527581484,0.00456857,3283.6,3281.8,0.49393]
[1762527581677,0.00456857,3283.6,3281.8,5.2633969]
[1762527581872,0.00456857,3283.6,3281.9,4.7694669]
[1762527582375,2.73027183,3284.8,3282.6,0.49381]
[1762527582376,1.63523596,3284.6,3282.6,0.49381]
[1762527582574,3.76954029,3285.7,3282.4,0.5269]
[1762527582575,1.63523596,3285.1,3283.2,0.5238]
[1762527582777,1.63523596,3285.3,3283.2,0.5238]
[1762527582979,1.63523596,3285.2,3283.3,4.29006477]
[1762527583477,0.00456857,3284.6,3283.9,0.00456857]
[1762527583678,0.00456857,3284.6,3283.9,0.00828706]
[1762527583976,0.00456857,3284.6,3284.0,4.29006477]
[1762527584673,0.00456857,3284.6,3284.1,4.57626477]
[1762527584879,0.00456857,3284.6,3284.1,0.2862]
[1762527585080,0.00456857,3284.6,3284.2,4.29006477]
[1762527585272,0.00456857,3284.6,3284.0,4.29006477]
[1762527585877,0.00456857,3284.6,3284.1,4.29006477]
[1762527586075,0.00456857,3284.6,3284.0,4.29006477]
[1762527586476,0.00456857,3284.6,3284.1,4.29006477]
[1762527586676,0.00456857,3284.6,3284.0,4.29006477]
[1762527587683,0.00456857,3284.6,3284.1,4.29006477]
[1762527588078,0.00456857,3284.6,3283.9,0.00828706]
[1762527588279,0.00456857,3284.6,3284.0,4.57626477]
[1762527589078,0.00456857,3284.6,3284.1,4.29006477]
[1762527589584,0.00456857,3284.6,3284.2,4.29006477]
[1762527589784,0.00456857,3284.6,3284.1,4.29006477]
[1762527590185,0.00456857,3284.6,3284.2,4.29006477]
[1762527590687,0.00456857,3284.6,3284.3,4.29006477]
[1762527590887,0.00456857,3284.6,3284.1,4.29006477]
[1762527591687,0.00456857,3284.6,3284.2,4.29006477]
[1762527592184,0.00456857,3284.6,3284.3,4.29006477]
[1762527592378,0.00456857,3284.6,3284.1,4.29006477]
[1762527593489,3.24573585,3287.1,3286.6,0.49321]
[1762527593690,3.24573585,3287.1,3285.6,0.5254]
[1762527593691,8.61609211,3288.7,3286.7,0.65]
[1762527593990,0.5434,3289.6,3287.9,0.79275739]
[1762527593991,0.5434,3288.0,3287.9,0.79275739]
[1762527594287,0.5434,3288.0,3286.5,1.05700985]
[1762527594585,2.71858132,3287.9,3287.7,1.05700985]
[1762527594788,2.71858132,3287.9,3287.3,1.58551478]
[1762527595090,2.71858132,3287.8,3287.3,1.58551478]
[1762527595389,2.71858132,3287.8,3285.5,0.49337]
[1762527595390,0.5434,3286.8,3285.3,2.62375476]
[1762527595586,0.5472307,3288.0,3285.2,8.70935476]
[1762527595782,0.5472307,3288.0,3285.4,0.49339]
[1762527596188,1.0402407,3288.0,3285.4,0.49679515]
[1762527596385,0.004561,3287.0,3286.4,0.004561]
[1762527597781,0.5472307,3288.0,3286.5,0.49323]
[1762527597986,0.5472307,3288.0,3286.4,0.004561]
[1762527598186,0.0038307,3288.0,3286.5,6.57721]
[1762527598387,0.0038307,3288.0,3286.5,0.49321]